bitfinex/quotes_SOLUSD_20250414
["timestamp","ask_amount","ask_price","bid_price","bid_amount"]
[1744646610290,46.56554629,129.04,128.99,46.56554629]
[1744646611410,26.39884886,129.05,128.99,46.56554629]
[1744646611579,46.56554629,129.04,128.99,46.56554629]
[1744646612414,46.56554629,129.03,128.99,46.56554629]
[1744646612588,46.56554629,129.03,128.96,6.41886157]
[1744646612589,46.56554629,129.01,128.96,0.063]
[1744646612787,46.56554629,129.01,128.97,46.56554629]
[1744646612981,46.56554629,129.01,128.96,46.62854629]
[1744646614014,7.7511,129.02,128.97,46.56554629]
[1744646614218,46.56554629,129.02,128.97,46.56554629]
[1744646614401,46.56554629,129.03,128.98,46.56554629]
[1744646614725,46.56554629,129.0,128.96,0.063]
[1744646615021,46.56554629,129.01,128.96,46.62854629]
[1744646615218,18.79181043,129.03,128.98,46.56554629]
[1744646615403,65.35735672,129.03,128.98,46.56554629]
[1744646615722,73.10785672,129.03,128.98,46.56554629]
[1744646616017,46.56554629,129.0,128.96,0.063]
[1744646616518,46.56554629,129.0,128.96,46.62854629]
[1744646616691,18.64964886,129.02,128.97,46.56554629]
[1744646616891,46.56554629,129.01,128.97,46.56554629]
[1744646617813,54.31694629,129.01,128.97,46.56554629]
[1744646618021,54.31694629,129.01,128.96,46.62854629]
[1744646618392,46.56554629,129.01,128.97,46.56554629]
[1744646618719,54.31654629,129.02,128.96,0.063]
[1744646618922,46.56554629,129.01,128.97,46.56554629]
[1744646619289,0.14216157,129.04,128.97,46.56554629]
[1744646619492,0.14216157,129.04,128.98,46.56554629]
[1744646619493,46.56554629,129.03,128.98,46.56554629]
[1744646620000,46.56554629,129.02,128.97,46.56554629]
[1744646620316,46.56554629,129.02,128.96,0.063]
[1744646620317,46.56554629,128.98,128.96,0.063]
[1744646620523,46.56554629,128.99,128.96,0.063]
[1744646620822,46.56554629,128.98,128.96,0.063]
[1744646621118,46.56554629,128.97,128.96,0.063]
[1744646621289,30.77562347,128.97,128.96,0.063]
[1744646622000,38.52932347,128.97,128.96,0.063]
[1744646622399,57.3211339,128.97,128.96,0.063]
[1744646622602,44.79181043,128.94,128.93,0.063]
[1744646622815,30.77562347,128.94,128.93,0.063]
[1744646622995,113.37562347,128.96,128.93,0.063]
[1744646623197,30.77562347,128.95,128.93,0.063]
[1744646623514,30.77562347,128.94,128.93,0.063]
[1744646623713,50.13608018,128.94,128.93,0.063]
[1744646623916,57.89158018,128.94,128.93,0.063]
[1744646624300,7.7551,128.95,128.93,0.063]
[1744646624507,30.77562347,128.94,128.93,0.063]
[1744646625102,49.5674339,128.94,128.93,0.063]
[1744646625303,57.3229339,128.94,128.93,0.063]
[1744646625618,57.89158018,128.94,128.93,0.063]
[1744646625918,88.66720365,128.94,128.93,0.063]
[1744646626217,19.36045671,128.93,128.9,0.063]
[1744646626429,31.34426975,128.91,128.9,0.063]
[1744646627325,145.15088018,128.91,128.9,0.063]
[1744646627505,144.75088018,128.91,128.9,0.063]
[1744646630121,45.07613357,128.87,128.84,0.063]
[1744646630324,76.13608018,128.87,128.84,0.063]
[1744646630707,156.93608018,128.87,128.84,0.063]
[1744646631030,76.13608018,128.87,128.84,0.063]
[1744646631732,19.36045671,128.86,128.84,0.063]
[1744646632027,0.56864628,128.83,128.82,10.063]
[1744646632213,62.11989322,128.83,128.82,10.063]
[1744646632411,80.91170365,128.83,128.82,10.063]
[1744646632815,18.64964886,128.8,128.77,0.063]
[1744646633006,30.77562347,128.78,128.77,0.063]
[1744646634814,18.64964886,128.8,128.77,0.063]
[1744646635021,30.77562347,128.78,128.77,0.063]
[1744646635601,26.41364886,128.8,128.77,0.063]
[1744646635820,30.77562347,128.78,128.77,0.063]
[1744646636219,30.77562347,128.8,128.77,0.063]
[1744646636432,30.77562347,128.79,128.77,0.063]
[1744646636611,0.14216157,128.8,128.77,0.063]
[1744646636821,30.77562347,128.79,128.77,0.063]
[1744646637002,30.77562347,128.8,128.77,0.063]
[1744646637322,10.38,128.83,128.79,30.77562347]
[1744646637527,0.14216157,128.86,128.81,30.77562347]
[1744646637846,30.77562347,128.85,128.8,30.77562347]
[1744646638537,30.77562347,128.84,128.79,30.77562347]
[1744646638738,30.77562347,128.83,128.78,7.6916]
[1744646638939,30.77562347,128.83,128.78,38.46722347]
[1744646639447,18.79181043,128.86,128.79,30.77562347]
[1744646639628,30.77562347,128.83,128.78,7.6916]
[1744646639826,30.77562347,128.82,128.78,1.6065]
[1744646640226,30.77562347,128.79,128.77,0.063]
[1744646640441,30.77562347,128.78,128.77,0.063]
[1744646641537,19.07613357,128.81,128.77,0.063]
[1744646641831,10.38,128.86,128.8,30.77562347]
[1744646642035,30.91778504,128.88,128.83,30.77562347]
[1744646642205,38.67698504,128.88,128.83,30.77562347]
[1744646642406,30.77562347,128.87,128.82,30.77562347]
[1744646642636,49.5674339,128.88,128.83,30.77562347]
[1744646642932,107.20844886,128.89,128.86,30.77562347]
[1744646642933,80.8,128.89,128.86,30.77562347]
[1744646643128,111.57562347,128.89,128.82,30.77562347]
[1744646643338,30.77562347,128.88,128.79,0.28432314]
[1744646643506,30.77562347,128.86,128.82,30.77562347]
[1744646643710,30.77562347,128.87,128.83,30.77562347]
[1744646643935,49.5674339,128.88,128.83,30.77562347]
[1744646644138,18.137,128.92,128.86,30.77562347]
[1744646644445,41.15562347,128.92,128.87,30.77562347]
[1744646644614,30.77562347,128.91,128.87,30.77562347]
[1744646644809,30.77562347,128.9,128.86,30.77562347]
[1744646645219,48.91232347,128.92,128.87,30.77562347]
[1744646645422,30.77562347,128.9,128.85,30.77562347]
[1744646645634,30.77562347,128.9,128.82,31.20210818]
[1744646645635,30.77562347,128.91,128.86,30.77562347]
[1744646645817,48.91232347,128.92,128.87,30.77562347]
[1744646646019,30.77562347,128.91,128.86,30.77562347]
[1744646646332,10.38,128.92,128.87,30.77562347]
[1744646646541,80.8,128.94,128.89,30.77562347]
[1744646646711,30.77562347,128.96,128.91,30.77562347]
[1744646646914,10.34,128.97,128.92,30.77562347]
[1744646647127,41.11562347,128.97,128.93,30.77562347]
[1744646647441,0.03,128.98,128.96,30.77562347]
[1744646647638,0.03,128.98,128.91,0.56864628]
[1744646647639,0.03,128.98,128.97,30.77562347]
[1744646647820,0.03,128.98,128.96,30.77562347]
[1744646648215,0.03,128.98,128.97,30.77562347]
[1744646648417,0.03,128.98,128.94,30.77562347]
[1744646648644,0.03,128.98,128.95,58.53562347]
[1744646648944,0.03,128.98,128.96,30.77562347]
[1744646649143,0.03,128.98,128.97,30.77562347]
[1744646649640,0.03,128.98,128.95,58.53562347]
[1744646651429,0.03,128.98,128.96,30.77562347]
[1744646652144,0.03,128.98,128.95,58.53562347]
[1744646652540,0.03,128.98,128.97,30.77562347]
[1744646654350,0.03,128.98,128.97,56.77562347]
[1744646655451,0.03,128.98,128.95,27.76]
[1744646655746,0.03,128.98,128.96,30.77562347]
[1744646656245,0.03,128.98,128.95,58.53562347]
[1744646656463,0.03,128.98,128.96,30.77562347]
[1744646656668,0.03,128.98,128.97,30.77562347]
[1744646658729,0.03,128.98,128.95,27.76]
[1744646659038,0.03,128.98,128.97,30.77562347]
[1744646659235,0.03,128.98,128.95,27.76]
[1744646659540,0.03,128.98,128.97,30.77562347]
[1744646661040,0.03,129.04,128.98,18.933972]
[1744646661236,0.03,129.04,129.03,30.77562347]
[1744646662023,0.03,129.04,129.02,30.77562347]
[1744646664432,0.03,129.04,129.03,30.77562347]
[1744646665448,0.03,129.04,129.0,37.41822347]
[1744646665661,0.03,129.04,129.03,30.77562347]
[1744646670462,0.03,129.04,129.0,37.41822347]
[1744646670661,0.03,129.04,129.03,30.77562347]
[1744646670965,0.03,129.04,129.03,50.13608018]
[1744646671139,0.03,129.04,129.03,30.77562347]
[1744646671339,0.03,129.04,129.02,30.77562347]
[1744646671545,0.03,129.04,129.0,26.0]
[1744646671755,30.80562347,129.04,129.0,56.77562347]
[1744646671931,30.80562347,129.04,128.99,30.77562347]
[1744646672132,30.77562347,129.02,128.97,30.77562347]
[1744646672338,30.77562347,129.03,128.98,30.77562347]
[1744646672641,18.82181043,129.04,128.99,30.77562347]
[1744646672946,30.77562347,129.03,128.98,30.77562347]
[1744646673354,38.02582347,129.03,128.98,30.77562347]
[1744646673542,30.27562347,129.03,128.98,30.77562347]
[1744646673746,38.02592347,129.03,128.96,10.34]
[1744646673934,30.77562347,129.02,128.97,30.77562347]
[1744646674135,30.77562347,129.01,128.97,30.77562347]
[1744646674637,30.77562347,129.01,128.96,30.77562347]
[1744646676163,30.77562347,129.01,128.95,27.76]
[1744646676164,26.40064886,129.02,128.97,30.77562347]
[1744646676354,57.17627233,129.02,128.97,30.77562347]
[1744646676975,30.77562347,129.03,128.99,30.77562347]
[1744646677263,30.77562347,129.03,128.97,30.77562347]
[1744646677264,30.77562347,129.01,128.97,30.77562347]
[1744646677455,30.77562347,129.01,128.95,27.76]
[1744646677759,80.83,129.04,128.99,30.77562347]
[1744646677935,0.03,129.04,129.02,30.77562347]
[1744646678540,30.80562347,129.04,129.0,30.77562347]
[1744646678731,30.77562347,129.01,128.96,30.77562347]
[1744646679472,7.7517,129.01,128.97,30.77562347]
[1744646679660,7.2517,129.01,128.97,30.77562347]
[1744646679867,57.3177339,129.03,128.98,30.77562347]
[1744646680160,30.77562347,129.03,128.98,30.77562347]
[1744646680459,30.77562347,129.03,128.99,30.77562347]
[1744646680769,7.7798,129.04,128.99,30.77562347]
[1744646680954,7.7798,129.04,129.01,30.77562347]
[1744646680955,0.03,129.04,129.01,30.77562347]
[1744646681275,0.03,129.04,129.0,30.77562347]
[1744646681468,30.80562347,129.04,128.99,30.77562347]
[1744646681661,0.03,129.04,129.0,30.77562347]
[1744646682677,30.80562347,129.04,128.99,30.77562347]
[1744646683172,30.77562347,129.03,128.99,30.77562347]
[1744646683474,30.80562347,129.04,128.99,30.77562347]
[1744646683677,30.77562347,129.01,128.96,30.77562347]
[1744646683855,30.77562347,129.02,128.97,30.77562347]
[1744646684170,49.42527233,129.02,128.98,30.77562347]
[1744646684358,30.77562347,129.01,128.97,30.77562347]
[1744646684555,30.77562347,129.02,128.97,30.77562347]
[1744646684756,30.77562347,129.03,128.99,30.77562347]
[1744646684961,49.45527233,129.04,128.99,30.77562347]
[1744646685178,30.77562347,129.03,128.99,30.77562347]
[1744646685669,0.03,129.04,129.0,30.77562347]
[1744646687175,0.03,129.04,128.96,0.71080785]
[1744646687378,0.03,129.04,129.0,30.77562347]
[1744646688451,49.42527233,129.03,128.99,30.77562347]
[1744646688679,30.77562347,129.01,128.96,30.77562347]
[1744646689369,0.45648471,129.04,128.98,30.77562347]
[1744646689568,30.77562347,129.03,128.98,30.77562347]
[1744646689770,38.52632347,129.02,128.98,30.77562347]
[1744646690452,7.7507,129.02,128.98,30.77562347]
[1744646690671,38.52632347,129.02,128.98,30.77562347]
[1744646690879,38.52602347,129.03,128.98,30.77562347]
[1744646691081,38.55532347,129.04,128.99,30.77562347]
[1744646692671,7.7797,129.04,128.99,30.77562347]
[1744646692879,7.7797,129.04,129.0,30.77562347]
[1744646692880,0.03,129.04,129.0,30.77562347]
[1744646693265,30.80562347,129.04,128.99,30.77562347]
[1744646693775,0.03,129.04,129.0,30.77562347]
[1744646694490,38.55512347,129.04,128.96,0.56864628]
[1744646694665,38.55512347,129.04,128.99,30.77562347]
[1744646694863,7.7795,129.04,128.98,30.77562347]
[1744646695056,30.77562347,129.03,128.98,30.77562347]
[1744646695256,7.7795,129.04,128.98,30.77562347]
[1744646695482,30.77562347,129.03,128.98,30.77562347]
[1744646695855,30.77562347,129.02,128.95,27.76]
[1744646696057,30.77562347,129.02,128.97,30.77562347]
[1744646696961,18.64964886,129.03,128.97,30.77562347]
[1744646697184,18.64964886,129.03,128.98,30.77562347]
[1744646697356,0.03,129.04,129.01,30.77562347]
[1744646698485,0.03,129.04,129.02,30.77562347]
[1744646700688,0.03,129.04,129.03,30.77562347]
[1744646702172,0.03,129.04,129.03,30.91778504]
[1744646702566,0.03,129.04,129.02,30.77562347]
[1744646702981,0.03,129.04,129.01,30.77562347]
[1744646703177,0.03,129.04,129.03,30.77562347]
[1744646704581,0.03,129.04,129.02,30.77562347]
[1744646704963,0.03,129.04,129.01,30.77562347]
[1744646705180,30.80562347,129.04,128.96,0.14216157]
[1744646705388,30.77562347,129.03,128.98,30.77562347]
[1744646705765,30.77562347,129.02,128.95,29.3315]
[1744646705978,6.037,129.04,128.98,30.77562347]
[1744646706262,30.77562347,129.02,128.97,30.77562347]
[1744646706463,7.7513,129.01,128.97,30.77562347]
[1744646706689,30.77562347,128.99,128.95,27.76]
[1744646707362,30.77562347,128.98,128.94,0.063]
[1744646707676,49.42527233,129.0,128.94,0.063]
[1744646708080,30.77562347,128.98,128.94,0.063]
[1744646708287,30.77562347,128.95,128.94,0.063]
[1744646708474,88.52444208,128.95,128.94,0.063]
[1744646708795,80.8,128.97,128.94,0.063]
[1744646709090,119.32932347,128.97,128.94,0.063]
[1744646709271,49.42527233,128.96,128.94,0.063]
[1744646709474,30.77562347,128.95,128.94,0.063]
[1744646710183,49.70959547,128.95,128.94,0.063]
[1744646710367,49.99391861,128.95,128.94,0.063]
[1744646710786,57.89098018,128.95,128.94,0.063]
[1744646711777,57.74881861,128.95,128.94,0.063]
[1744646712379,26.97319514,128.95,128.94,0.063]
[1744646712683,18.64964886,128.96,128.94,0.063]
[1744646713073,48.78952347,128.97,128.94,0.063]
[1744646713274,18.0139,128.97,128.94,0.063]
[1744646713474,10.26,128.97,128.94,30.83862347]
[1744646714281,48.78952347,128.97,128.94,0.063]
[1744646714514,41.03562347,128.97,128.94,0.063]
[1744646714995,10.26,128.97,128.94,30.83862347]
[1744646716370,18.0138,128.97,128.94,0.063]
[1744646716569,63.92561861,128.95,128.94,0.063]
[1744646717000,30.77562347,128.96,128.94,0.063]
[1744646717165,91.06,128.97,128.94,0.063]
[1744646717377,121.83562347,128.97,128.94,0.063]
[1744646717571,30.77562347,128.96,128.94,0.063]
[1744646718108,49.70959547,128.95,128.94,0.063]
[1744646718293,49.99391861,128.95,128.94,0.063]
[1744646718487,18.64964886,128.95,128.94,0.063]
[1744646718684,57.18017233,128.95,128.94,0.063]
[1744646718891,26.40454886,128.95,128.94,0.063]
[1744646719410,80.8,128.97,128.94,0.063]
[1744646719573,80.8,128.97,128.96,30.77562347]
[1744646720277,47.69320818,129.02,128.96,30.77562347]
[1744646720278,94.7821,129.02,128.96,30.77562347]
[1744646720482,94.7821,129.02,128.99,30.77562347]
[1744646721090,0.03,129.04,129.01,30.77562347]
[1744646721287,0.03,129.04,129.02,30.77562347]
[1744646721684,0.03,129.04,129.03,30.77562347]
[1744646722188,0.03,129.04,129.03,30.91778504]
[1744646722409,0.03,129.04,129.03,30.77562347]
[1744646724294,0.03,129.04,128.98,0.14216157]
[1744646724531,0.03,129.04,129.01,30.77562347]
[1744646724686,0.03,129.04,128.98,30.14216157]
[1744646724687,0.03,129.04,129.02,30.77562347]
[1744646724893,0.03,129.04,129.0,30.77562347]
[1744646725108,0.03,129.04,129.03,30.77562347]
[1744646727591,0.03,129.04,129.03,30.91778504]
[1744646728097,0.03,129.04,129.03,30.77562347]
[1744646731095,0.03,129.04,129.03,30.91778504]
[1744646731387,0.03,129.09,129.06,26.0]
[1744646731589,0.03,129.09,129.08,30.77562347]
[1744646732109,0.03,129.09,129.04,26.0]
[1744646732311,0.03,129.09,129.06,30.77562347]
[1744646732686,0.03,129.09,129.08,30.77562347]
[1744646733294,0.03,129.09,129.08,30.91778504]
[1744646733498,0.03,129.17,129.12,26.14216157]
[1744646733709,7.7386,129.23,129.16,30.77562347]
[1744646734026,6.3119,129.24,129.12,30.91778504]
[1744646734027,14.0495,129.24,129.19,30.77562347]
[1744646734317,14.0495,129.24,129.15,0.14216157]
[1744646734318,30.80562347,129.2,129.15,30.77562347]
[1744646734818,30.80562347,129.2,129.16,30.77562347]
[1744646735119,30.80562347,129.2,129.15,30.77562347]
[1744646735313,49.42527233,129.19,129.14,30.77562347]
[1744646735496,30.77562347,129.17,129.13,30.77562347]
[1744646735814,30.77562347,129.17,129.12,30.77562347]
[1744646736011,0.14216157,129.19,129.13,30.77562347]
[1744646736325,30.77562347,129.17,129.13,30.77562347]
[1744646737041,0.14216157,129.18,129.11,30.77562347]
[1744646737208,30.77562347,129.16,129.11,30.77562347]
[1744646737389,38.51812347,129.16,129.11,30.77562347]
[1744646737807,38.51812347,129.16,129.12,30.77562347]
[1744646738007,38.51812347,129.16,129.07,0.28432314]
[1744646738008,38.51752347,129.17,129.13,30.77562347]
[1744646738300,38.51752347,129.17,129.1,0.14216157]
[1744646738506,38.51752347,129.17,129.13,30.77562347]
[1744646738889,7.7419,129.17,129.13,30.77562347]
[1744646739613,38.51752347,129.17,129.12,30.77562347]
[1744646739811,30.77562347,129.16,129.11,30.77562347]
[1744646740200,38.51752347,129.17,129.12,30.77562347]
[1744646740713,18.64964886,129.16,129.09,26.0]
[1744646740905,49.42527233,129.16,129.09,26.0]
[1744646741099,49.42527233,129.16,129.11,30.77562347]
[1744646741498,30.91778504,129.15,129.06,30.77562347]
[1744646741696,30.91778504,129.15,129.05,1.51]
[1744646741697,30.77562347,129.13,129.08,30.77562347]
[1744646741916,30.77562347,129.12,129.08,30.77562347]
[1744646742129,30.77562347,129.13,129.08,30.77562347]
[1744646742416,30.77562347,129.14,129.09,30.77562347]
[1744646742614,18.64964886,129.13,129.09,30.77562347]
[1744646742817,7.7447,129.12,129.08,30.77562347]
[1744646743523,7.7447,129.12,129.05,1.51]
[1744646743712,30.77562347,129.11,129.06,30.77562347]
[1744646744114,30.77562347,129.11,129.04,0.14216157]
[1744646744115,38.52032347,129.12,129.07,30.77562347]
[1744646744308,7.7447,129.12,129.08,30.77562347]
[1744646745325,49.42527233,129.13,129.08,30.77562347]
[1744646745619,7.7443,129.13,129.09,30.77562347]
[1744646745789,38.51992347,129.13,129.08,30.77562347]
[1744646746617,30.77562347,129.1,129.03,26.0]
[1744646746815,99.733972,129.12,128.99,0.14216157]
[1744646746816,30.77562347,129.07,128.99,0.14216157]
[1744646747028,38.52392347,129.06,129.01,30.77562347]
[1744646747194,38.52392347,129.06,129.02,30.77562347]
[1744646747396,35.22414886,129.09,129.04,30.77562347]
[1744646747712,57.17247233,129.08,129.0,60.77562347]
[1744646747903,30.77562347,129.07,129.02,30.77562347]
[1744646749118,7.7483,129.06,129.02,30.77562347]
[1744646749297,38.52392347,129.06,129.01,30.77562347]
[1744646749823,7.7483,129.06,129.02,30.77562347]
[1744646750323,38.52392347,129.06,129.01,30.77562347]
[1744646751226,7.7475,129.08,129.05,30.77562347]
[1744646751425,24.3212,129.09,129.06,30.77562347]
[1744646751620,16.5745,129.09,129.07,30.77562347]
[1744646751796,80.8,129.1,129.08,30.77562347]
[1744646752122,0.14216157,129.13,129.09,30.77562347]
[1744646752123,16.6025,129.13,129.09,30.77562347]
[1744646752320,10.22,129.13,129.12,30.77562347]
[1744646752900,10.22,129.13,129.11,30.77562347]
[1744646753226,17.9644,129.13,129.1,30.77562347]
[1744646753727,30.77562347,129.11,129.06,30.77562347]
[1744646754108,49.70959547,129.1,129.03,26.0]
[1744646754440,30.77562347,129.06,129.01,30.77562347]
[1744646754596,30.77562347,129.05,129.01,30.77562347]
[1744646755112,0.28432314,129.07,129.01,30.77562347]
[1744646755113,30.77562347,129.06,129.01,30.77562347]
[1744646755506,38.52442347,129.06,129.01,30.77562347]
[1744646756124,18.64964886,129.05,129.01,30.77562347]
[1744646757001,30.77562347,129.03,128.99,0.063]
[1744646757297,30.77562347,129.04,129.0,30.77562347]
[1744646757502,41.27994661,129.07,129.02,30.77562347]
[1744646757724,41.27994661,129.07,128.99,0.063]
[1744646757725,49.42527233,129.06,129.01,30.77562347]
[1744646757919,30.77562347,129.05,129.0,30.77562347]
[1744646758348,30.77562347,129.05,128.99,0.063]
[1744646758522,18.64964886,129.06,129.01,30.77562347]
[1744646758523,57.17357233,129.06,129.01,30.77562347]
[1744646758827,30.77562347,129.05,129.0,30.77562347]
[1744646759325,30.77562347,129.01,128.99,0.063]
[1744646759554,24.87854886,129.0,128.99,0.063]
[1744646759733,6.2289,129.0,128.99,0.063]
[1744646760526,18.64964886,129.02,128.99,30.83862347]
[1744646760730,119.66108504,129.04,128.99,30.83862347]
[1744646760919,30.77562347,129.02,128.99,0.063]
[1744646761100,49.85175704,129.0,128.99,0.063]
[1744646761299,90.84738051,129.0,128.99,0.063]
[1744646761503,29.29613357,129.0,128.99,0.063]
[1744646761733,28.86964886,129.0,128.99,0.063]
[1744646762125,10.22,129.0,128.99,0.063]
[1744646762326,80.8,129.01,128.99,0.063]
[1744646762626,49.42527233,129.0,128.99,0.063]
[1744646762838,57.17717233,129.0,128.99,0.063]
[1744646763316,88.66360365,129.0,128.99,0.063]
[1744646763520,24.65094886,128.96,128.94,0.063]
[1744646763730,30.77562347,128.95,128.94,0.063]
[1744646763939,55.42657233,128.96,128.94,0.063]
[1744646764428,24.65094886,128.96,128.94,0.063]
[1744646764641,55.42657233,128.96,128.94,0.063]
[1744646764935,63.18127233,128.96,128.94,0.063]
[1744646765537,33.7539,128.97,128.94,0.063]
[1744646766429,49.42527233,128.95,128.94,0.063]
[1744646767008,57.18017233,128.95,128.94,0.063]
[1744646767403,30.77562347,128.96,128.94,0.063]
[1744646768007,18.64964886,128.96,128.94,0.063]
[1744646768310,56.77562347,128.97,128.94,0.063]
[1744646768513,109.62964886,128.98,128.94,30.83862347]
[1744646768933,117.38284886,128.98,128.94,30.83862347]
[1744646769114,148.15847233,128.98,128.94,0.063]
[1744646769428,30.77562347,128.96,128.94,0.063]
[1744646769736,49.99391861,128.95,128.94,0.063]
[1744646770834,57.74881861,128.95,128.94,0.063]
[1744646771015,57.89098018,128.95,128.94,0.063]
[1744646771207,94.81710365,128.95,128.94,0.0001]
[1744646773134,64.04148018,128.95,128.94,0.0001]
[1744646773430,94.81710365,128.95,128.94,0.0001]
[1744646773810,94.81710365,128.95,128.92,0.063]
[1744646773811,124.40045671,128.94,128.92,0.0001]
[1744646774007,46.99865671,128.9,128.89,4.965e-05]
[1744646774209,25.66379514,128.89,128.85,0.063]
[1744646774437,87.35720365,128.89,128.85,0.063]
[1744646774839,80.76954208,128.88,128.85,0.063]
[1744646775217,88.52864208,128.88,128.85,0.063]
[1744646775738,19.36045671,128.87,128.86,0.0001]
[1744646775938,50.13608018,128.87,128.86,0.0001]
[1744646776110,49.42527233,128.82,128.81,0.063]
[1744646777045,10.74864628,128.83,128.81,0.063]
[1744646777046,10.18,128.83,128.81,0.063]
[1744646777218,259.8191,128.88,128.82,30.77562347]
[1744646777538,49.5674339,128.87,128.83,30.77562347]
[1744646777834,18.79181043,128.87,128.83,30.77562347]
[1744646778349,18.64964886,128.85,128.81,0.063]
[1744646778524,18.64964886,128.84,128.81,0.063]
[1744646778723,0.42648471,128.86,128.82,30.77562347]
[1744646778928,18.64964886,128.86,128.83,30.77562347]
[1744646779725,80.8,128.86,128.85,30.77562347]
[1744646780045,249.6391,128.88,128.85,30.77562347]
[1744646780242,241.88,128.88,128.85,38.53652347]
[1744646780446,241.88,128.88,128.86,30.77562347]
[1744646780922,10.2,128.9,128.87,30.77562347]
[1744646781123,10.2,128.9,128.89,30.77562347]
[1744646781453,80.8,128.94,128.89,30.77562347]
[1744646781628,80.8,128.94,128.88,32.36342347]
[1744646781821,252.12,128.96,128.92,30.77562347]
[1744646782026,252.12,128.96,128.88,32.36342347]
[1744646782027,290.65012347,128.96,128.91,30.77562347]
[1744646782234,30.77562347,128.94,128.89,30.77562347]
[1744646782442,30.77562347,128.94,128.85,27.1633]
[1744646782443,18.64964886,128.94,128.92,30.77562347]
[1744646782841,18.64964886,128.94,128.91,30.77562347]
[1744646783544,26.40514886,128.94,128.88,26.0]
[1744646783761,26.40514886,128.94,128.91,30.77562347]
[1744646784326,26.40514886,128.94,128.86,33.7603]
[1744646784526,88.5551,128.95,128.91,30.77562347]
[1744646785047,87.79398145,128.95,128.91,30.77562347]
[1744646786150,80.03888145,128.95,128.92,30.77562347]
[1744646786356,87.79378145,128.95,128.91,30.77562347]
[1744646786950,18.64964886,128.94,128.91,30.77562347]
[1744646787150,49.42527233,128.92,128.86,30.77562347]
[1744646787355,49.42527233,128.92,128.84,0.063]
[1744646787356,30.77562347,128.87,128.84,0.063]
[1744646787545,49.42527233,128.85,128.84,0.063]
[1744646787848,40.97562347,128.87,128.84,0.063]
[1744646788054,38.53592347,128.86,128.84,0.063]
[1744646788533,18.64964886,128.85,128.84,0.063]
[1744646788927,49.42527233,128.85,128.84,0.063]
[1744646789254,38.53592347,128.86,128.84,0.063]
[1744646789570,18.64964886,128.85,128.84,0.063]
[1744646789729,26.41054886,128.85,128.84,0.063]
[1744646791857,38.53602347,128.86,128.84,0.063]
[1744646792036,7.7604,128.86,128.84,0.063]
[1744646792631,90.23888145,128.87,128.84,30.83862347]
[1744646792847,87.79858145,128.87,128.84,30.83862347]
[1744646793134,18.64964886,128.86,128.84,0.063]
[1744646793548,31.34426975,128.85,128.84,0.063]
[1744646793755,39.10516975,128.85,128.84,0.063]
[1744646793937,26.41024886,128.86,128.84,0.063]
[1744646794543,18.64964886,128.89,128.85,30.77562347]
[1744646794761,99.57464302,128.91,128.84,0.063]
[1744646794762,98.83069188,128.91,128.87,30.77562347]
[1744646795055,90.23888145,128.95,128.9,30.77562347]
[1744646795357,7.7556,128.94,128.91,30.77562347]
[1744646795547,97.99388145,128.95,128.93,30.77562347]
[1744646795742,87.79388145,128.95,128.93,30.77562347]
[1744646795948,87.79388145,128.95,128.92,30.77562347]
[1744646796660,87.82388145,128.95,128.92,30.77562347]
[1744646796831,87.82388145,128.95,128.91,30.77562347]
[1744646797247,87.82388145,128.95,128.92,30.77562347]
[1744646797961,80.06888145,128.95,128.93,30.77562347]
[1744646798263,0.03,128.95,128.94,30.77562347]
[1744646798460,0.03,128.95,128.94,61.55124694]
[1744646798639,0.03,128.95,128.94,30.77562347]
[1744646798958,0.03,128.95,128.94,61.55124694]
[1744646799138,0.03,128.95,128.94,61.69340851]
[1744646799337,10.16,129.02,128.95,0.14216157]
[1744646799577,10.16,129.02,128.94,38.53112347]
[1744646799578,48.68632347,129.02,128.94,38.53112347]
[1744646799761,18.64964886,128.98,128.94,30.77562347]
[1744646799939,49.42527233,128.97,128.92,30.77562347]
[1744646800259,49.42527233,128.97,128.88,33.7591]
[1744646800260,49.42527233,128.95,128.88,33.7591]
[1744646800567,30.77562347,128.93,128.89,30.77562347]
[1744646800853,30.77562347,128.92,128.87,30.77562347]
[1744646801065,18.64964886,128.94,128.9,30.77562347]